[Event "Fredericia IM 2022"]
[Site "Fredericia"]
[Date "2022.05.26"]
[Round "3.5"]
[White "Thorsbro, Peter"]
[Black "Easwaralingam, Adesh"]
[Result "1/2-1/2"]
[ECO "A45"]
[WhiteElo "2192"]
[BlackElo "2116"]
[Annotator "TA"]
[PlyCount "61"]
[EventDate "2022.05.25"]
[EventType "tourn"]
[EventCountry "DEN"]
[SourceTitle "playchess.com"]
[Source "ChessBase"]
[SourceQuality "1"]
[TimeControl "40/5400+30:1800+30"]

{[%evp 18,61,19,0,95,93,112,98,66,91,171,162,183,174,179,89,88,94,85,88,84,77,82,75,79,47,49,51,64,0,0,0,0,0,0,-3,-2,-75,-53,-42,-54,-45,-53,-43,0,0]} 1. d4 {[%emt 0:02:02]} Nf6 {[%emt 0:00:34]} 2. g3 {[%emt 0:00:06]} d5 {[%emt 0:00:15]} 3. Bg2 {[%emt 0:00:06]} e6 {[%emt 0:00:56]} 4. Nf3 {[%emt 0:00:07]} Be7 {[%emt 0:00:41]} 5. O-O {[%emt 0:00:09]} O-O {[%emt 0:02:17]} 6. c4 {[%emt 0:00:10]} dxc4 {[%emt 0:00:30]} 7. Qc2 {[%emt 0:00:07]} a6 {[%emt 0:00:53]} 8. a4 {[%emt 0:06:28]} Bd7 {[%emt 0:00:37]} 9. Rd1 {[%emt 0:05:53]} Bc6 {[%emt 0:00:20]} 10. Nc3 {[%emt 0:00:20] 10.Bg5 is the hot move.} Nbd7 {[%emt 0:09:16] E05: Open Catalan: 5 Nf3 Be7.} (10... Bxf3 $11 11. Bxf3 Nc6) 11. e4 $1 $16 {[%emt 0:04:03][%cal Be2e4,Be4e5][%mdl 32] d5 is the strong threat.} b5 {[%emt 0:01:04] [#]} 12. d5 $1 {[%emt 0:05:19]} exd5 {[%emt 0:02:09] White is better.} 13. e5 {[%emt 0:07:16]} Ne4 {[%emt 0:11:17]} (13... Nc5 $16 {is a better defense.}) 14. Nxd5 $18 {[%emt 0:08:34]} Bxd5 {[%emt 0:08:06]} 15. Rxd5 {[%emt 0:00:07]} c6 {[%emt 0:04:12] [#]} 16. Rd1 $146 {[%emt 0:07:51]} (16. Rxd7 $1 $18 {is more deadly.} Qxd7 17. Qxe4) ({Predecessor:} 16. Rxd7 Qxd7 17. Qxe4 Qd1+ 18. Bf1 Rac8 19. Rb1 Qd5 20. Qg4 Rfe8 21. Bh6 Bf8 22. Bg2 bxa4 {1-0 (36) Shapkin,A (2283)-Ward,I (2028) Chess.com INT 2020}) 16... Nec5 $16 {[%emt 0:02:29][%cal Be4c5,Bc5d3,Bd3e5,Be5f3][%mdl 32] [#]} 17. Nd4 $1 {[%emt 0:01:36][%mdl 64] Discovered Attack} Rc8 {[%emt 0:10:28]} (17... Nxe5 $2 18. Nxc6 Qc7 19. Bf4 Qxc6 20. Bxc6 Nxc6 21. axb5 axb5 22. Rxa8 Rxa8 23. Bd6 $18) 18. Nxc6 {[%emt 0:02:23]} Qe8 {[%emt 0:01:18]} 19. axb5 {[%emt 0:00:40]} axb5 {[%emt 0:01:13]} 20. Ra7 {[%emt 0:03:34] White is much more active.} Nd3 {[%emt 0:04:24]} 21. Nxe7+ {[%emt 0:08:59]} (21. Be3 $5 {[%cal Rg2h3]} Bd8 22. f4 $16) 21... Qxe7 {[%emt 0:00:27]} 22. Bh3 {[%emt 0:00:32] Inhibits Qe6.} Rfd8 {[%emt 0:05:20]} 23. Be3 {[%emt 0:02:02]} (23. b3 $1 $14) 23... Ra8 $11 {[%emt 0:01:37]} 24. Rda1 {[%emt 0:08:36]} Rxa7 {[%emt 0:02:34]} 25. Rxa7 {[%emt 0:00:04] Strongly threatening Bb6.} N3xe5 {[%emt 0:00:19]} 26. Qe4 {[%emt 0:05:02]} (26. Bxd7 $5 Rxd7 27. Ra8+ Rd8 28. Qe4 Rxa8 29. Qxa8+ Qf8 30. Qe4 $11) 26... Qd6 {[%emt 0:02:55] And now ...Nc5 would win.} 27. Bd4 {[%emt 0:04:58]} (27. Bxd7 $11 Nxd7 28. Qb7) 27... Qxd4 {[%emt 0:03:49]} 28. Qxd4 {[%emt 0:00:05]} Nf3+ {[%emt 0:00:03]} 29. Kf1 {[%emt 0:00:35] Qxd7 would kill now.} Nxd4 {[%emt 0:00:03]} 30. Bxd7 {[%emt 0:00:29]} g6 {[%emt 0:01:16]} 31. Rb7 {[%emt 0:00:46] Black escapes into a draw.  Weighted Error Value: White=0.17 (very precise) /Black=0.24 (precise)} 1/2-1/2

[Event "Fredericia IM 2022"]
[Site "Fredericia"]
[Date "2022.05.27"]
[Round "4.1"]
[White "Easwaralingam, Adesh"]
[Black "Bogdanov, IM Egor"]
[Result "0-1"]
[ECO "B06"]
[WhiteElo "2116"]
[BlackElo "2415"]
[Annotator "TA"]
[PlyCount "105"]
[EventDate "2022.05.25"]
[EventType "tourn"]
[EventCountry "DEN"]
[SourceTitle "playchess.com"]
[Source "ChessBase"]
[SourceQuality "1"]
[TimeControl "40/5400+30:1800+30"]

{[%evp 9,105,49,60,17,67,37,57,44,41,40,54,55,60,-14,63,97,91,18,181,-11,75,68,63,62,82,89,102,95,86,83,58,39,39,39,159,163,163,137,135,33,110,99,173,151,129,136,155,60,60,56,54,62,20,0,2,0,0,0,0,0,0,-142,-107,-121,-108,-418,-412,-416,-401,-424,-402,-399,-397,-382,-365,-425,-389,-493,-468,-457,-428,-425,-404,-521,-410,-418,-384,-421,-411,-1896,-1415,-12841,-12842,-12843,-12843,-12844,-12844,-12845]} 1. e4 {[%emt 0:00:11]} g6 {[%emt 0:00:04]} 2. d4 {[%emt 0:01:03]} Bg7 {[%emt 0:00:03]} 3. Nc3 {[%emt 0:01:43]} d6 {[%emt 0:00:04]} 4. Be3 {[%emt 0:01:36]} a6 {[%emt 0:00:31]} 5. Qd2 {[%emt 0:02:21]} b5 {[%emt 0:00:04]} 6. h4 {[%emt 0:00:35] B06: Modern Defence.} h6 {[%emt 0:01:22]} (6... h5 $11) 7. Nh3 {[%emt 0:02:26]} Nd7 {[%emt 0:01:44]} 8. O-O-O {[%emt 0:03:13] White is slightly better.} Bb7 {[%emt 0:00:18]} 9. f3 {[%emt 0:01:31]} c5 {[%emt 0:02:26]} 10. g4 {[%emt 0:06:35] [#]} Qc7 $146 {[%emt 0:00:37]} ({Predecessor:} 10... b4 11. Ne2 Qa5 12. Kb1 c4 13. c3 b3 14. axb3 cxb3 15. Nc1 Qa4 16. c4 Rb8 {1-0 (46) Tabatabaei,M (2587)-Petrosian,T (2598) Chess.com INT 2018}) 11. Nd5 {[%emt 0:05:11]} (11. Kb1 $14) 11... Qc6 {[%emt 0:06:35]} (11... Bxd5 $11 12. exd5 c4) 12. dxc5 $14 {[%emt 0:05:18]} dxc5 {[%emt 0:00:13]} 13. g5 {[%emt 0:06:46]} (13. Qa5 $16 Rc8 14. Kb1) 13... h5 $2 {[%emt 0:00:59]} (13... e6 $1 $11) 14. Be2 $2 {[%emt 0:08:32]} (14. Qa5 $18 {Threatens to win with Nc7+.} Rc8 15. a4 bxa4 16. Bf4) 14... O-O-O {[%emt 0:04:49] Prevents Nc7.} (14... e6 $11 {remains equal.}) 15. Qa5 $16 {[%emt 0:04:08] aiming for c4.} e6 $1 {[%emt 0:02:08]} 16. Nc3 {[%emt 0:03:55][%cal Re2b5]} Ne7 {[%emt 0:11:57] [#]} 17. Bxb5 $1 {[%emt 0:09:17]} axb5 {[%emt 0:26:26]} 18. Nxb5 {[%emt 0:00:51]} Qb6 {[%emt 0:00:06]} 19. Qxb6 {[%emt 0:04:53][%mdl 64] Remove Defender} Nxb6 {[%emt 0:00:02]} 20. Rxd8+ {[%emt 0:08:34]} Rxd8 {[%emt 0:01:53]} 21. Bxc5 {[%emt 0:01:03]} Ba6 {[%emt 0:10:34]} ({Black should try} 21... Na4 $14 22. Bxe7 Bxb2+ 23. Kb1 Rd7) 22. Bxb6 {[%emt 0:02:49]} ({Not} 22. Na7+ Kb7 23. Bxe7 Ra8 $17) 22... Bxb5 {[%emt 0:00:12]} 23. Bxd8 {[%emt 0:00:21]} Kxd8 {[%emt 0:00:01]} 24. f4 {[%emt 0:03:33]} (24. Kd2 $16) 24... Be2 {[%emt 0:00:42]} ({Black should play} 24... e5 $14) 25. Re1 {[%emt 0:01:13]} Bf3 {[%emt 0:02:16]} (25... Bb5 $16) 26. Re3 {[%emt 0:00:27]} Bg2 {[%emt 0:00:37]} 27. Nf2 {[%emt 0:03:49]} f5 {[%emt 0:03:10]} 28. exf5 {[%emt 0:01:43]} (28. e5 $16) 28... Nxf5 $14 {[%emt 0:02:09]} 29. Rxe6 {[%emt 0:00:12]} Nxh4 {[%emt 0:00:02]} 30. c3 {[%emt 0:00:51]} Kd7 {[%emt 0:01:36]} 31. Ra6 {[%emt 0:00:25] Strongly threatening Ra7+.} Bb7 $1 {[%emt 0:00:06]} 32. Rb6 {[%emt 0:00:23]} Bc6 {[%emt 0:01:01]} 33. Rb8 {[%emt 0:04:17][%cal Oa2a4]} Nf5 {[%emt 0:01:14]} 34. Kd2 {[%emt 0:00:48]} h4 {[%emt 0:01:18]} 35. b4 {[%emt 0:01:02] [#]} (35. Ke1 $11) 35... Ne7 $1 $17 {[%emt 0:02:01]} 36. Rb6 {[%emt 0:02:47]} Nd5 {[%emt 0:00:17][%csl LRb6,LRc3,LRf4]} 37. Ra6 {[%emt 0:00:46][%mdl 8192]} (37. Rb8 $17 {is tougher.}) 37... Bxc3+ $19 {[%emt 0:00:02]} 38. Kc1 {[%emt 0:00:37][%cal Ob4b5]} Nxf4 {[%emt 0:01:38]} 39. Ra7+ {[%emt 0:00:40]} Kd6 {[%emt 0:00:30] White must now prevent ...Bd4.} 40. Rf7 {[%emt 0:00:20] [#]} Bd4 $1 {[%emt 0:03:08]} 41. Ng4 {[%emt 0:31:58]} Nh5 {[%emt 0:31:03]} 42. a3 {[%emt 0:02:02]} h3 {[%emt 0:00:30] And now ...Bd7 would win.} 43. Rf1 {[%emt 0:00:00]} Ke6 {[%emt 0:00:00]} 44. Kd2 {[%emt 0:00:00]} Bg2 {[%emt 0:00:00]} 45. Rf8 {[%emt 0:00:00]} Ke7 {[%emt 0:00:00]} 46. Rg8 {[%emt 0:00:00]} Be4 {[%emt 0:00:00] ...Bg1 is the strong threat.} 47. b5 {[%emt 0:00:00]} Bf5 {[%emt 0:00:00] This bishop pair is nice.} ({Wrong is} 47... Bg1 $2 48. Rc8 $19) 48. Nh2 {[%emt 0:00:00]} Be5 {[%emt 0:00:00]} 49. Nf1 {[%emt 0:00:00]} (49. Nf3 $142) 49... Ng3 {[%emt 0:00:00] Black is clearly winning.} 50. Nxg3 {[%emt 0:00:00]} Bxg3 {[%emt 0:00:00]} 51. Ke3 {[%emt 0:00:00]} h2 {[%emt 0:00:00]} 52. Rh8 {[%emt 0:00:00]} Bg4 {[%emt 0:00:00]} 53. Kd4 {What a bad dream for White.  Weighted Error Value: White=0.54/Black=0.22 (precise)} 0-1

[Event "Fredericia IM 2022"]
[Site "Fredericia"]
[Date "2022.05.27"]
[Round "4.2"]
[White "Egilstoft, FM Rogvi"]
[Black "Ramsdal, FM Jens Albert"]
[Result "1-0"]
[ECO "B22"]
[WhiteElo "2334"]
[BlackElo "2267"]
[Annotator "TA"]
[PlyCount "67"]
[EventDate "2022.05.25"]
[EventType "tourn"]
[EventCountry "DEN"]
[SourceTitle "playchess.com"]
[Source "ChessBase"]
[SourceQuality "1"]
[TimeControl "40/5400+30:1800+30"]

{[%evp 14,67,6,0,-4,0,0,0,0,0,8,25,17,15,32,39,38,41,42,28,68,0,8,11,61,52,60,66,84,70,75,58,91,84,96,96,105,94,145,129,612,161,168,122,298,302,311,291,272,233,585,554,29993,29994,29996,29990]} 1. e4 {[%emt 0:03:02][%cal Be2e4,Be4e5][%mdl 32]} c5 {[%emt 0:00:49]} 2. c3 {[%emt 0:00:29]} Nf6 {[%emt 0:00:14]} 3. e5 {[%emt 0:00:19]} Nd5 {[%emt 0:00:06]} 4. d4 {[%emt 0:00:30]} cxd4 {[%emt 0:01:40]} 5. Nf3 {[%emt 0:00:23]} d6 {[%emt 0:02:06]} 6. cxd4 {[%emt 0:00:27]} Nc6 {[%emt 0:00:50]} 7. Bc4 {[%emt 0:00:22]} dxe5 {[%emt 0:01:00]} 8. dxe5 {[%emt 0:04:01]} Be6 {[%emt 0:01:03][%cal Od5e3] B22: Sicilian: 2 c3.} 9. O-O {[%emt 0:07:52]} g6 {[%emt 0:01:58]} 10. Qe2 {[%emt 0:21:32] was the old line (10.Ng5).} Bg7 {[%emt 0:03:22] The position is equal.} 11. Ng5 {[%emt 0:25:27]} O-O {[%emt 0:08:54]} 12. Nxe6 {[%emt 0:04:17]} fxe6 {[%emt 0:00:02] [#]} 13. Nc3 $146 {[%emt 0:00:14]} ({Predecessor:} 13. f4 g5 14. g3 gxf4 15. gxf4 Qb6+ 16. Kh1 Qd4 17. Nc3 Nxf4 18. Bxf4 Rxf4 19. Rxf4 Qxf4 {0-1 (35) Pap,M (2377)-Prraneeth,V (2275) Budapest 2021}) 13... Kh8 {[%emt 0:15:47]} (13... Qa5 {with more complications.} 14. Bd2 Qc5 15. Na4 Qd4) 14. Rd1 {[%emt 0:04:11][%cal Rc3d5]} Nxc3 {[%emt 0:04:05]} 15. bxc3 {[%emt 0:00:07]} Qa5 {[%emt 0:00:11]} 16. Rb1 {[%emt 0:04:07]} Rad8 {[%emt 0:12:09]} 17. Bb2 {[%emt 0:04:35]} (17. Bxe6 Qxe5 18. Bg4 Rxd1+ 19. Qxd1 Rd8 $11) ({White should play} 17. Rxd8 $14 Rxd8 18. Rxb7) 17... Nxe5 {[%emt 0:11:43]} 18. Bxe6 {[%emt 0:00:57]} Rd6 {[%emt 0:02:22]} (18... Nc6 $11) 19. Rxd6 $14 {[%emt 0:01:45]} exd6 {[%emt 0:00:02]} 20. Rd1 {[%emt 0:00:22]} Qc5 {[%emt 0:04:43]} 21. c4 {[%emt 0:02:28]} Re8 {[%emt 0:12:52]} 22. Bd5 {[%emt 0:00:48]} b6 {[%emt 0:00:10]} 23. Kh1 {[%emt 0:01:28] Hoping for f4.} Rf8 {[%emt 0:00:45]} 24. f3 {[%emt 0:01:12]} Qc7 {[%emt 0:02:40]} 25. Ba3 {[%emt 0:00:35]} h5 {[%emt 0:02:52]} (25... g5 $142) 26. h3 {[%emt 0:02:39]} Kh7 $2 {[%emt 0:02:32][%mdl 8192] [#]} (26... Qe7 $16 27. Be4 Nf7) 27. Qe4 $2 {[%emt 0:01:44]} (27. Bxd6 $1 {[%mdl 512]} Qd8 28. Bxe5) 27... Nf7 $18 {[%emt 0:03:55]} 28. Qh4 {[%emt 0:02:33]} (28. Re1 $18) 28... Qd7 {[%emt 0:02:13]} (28... Re8 $16 {is a better defense.} 29. Be4 Re5) 29. Be4 {[%emt 0:00:41] Threatens to win with Qxh5+.} Qa4 {[%emt 0:01:12]} 30. Rd3 {[%emt 0:03:22] White threatens Qxh5+ and mate.} Qa5 {[%emt 0:00:01]} 31. Bxd6 $40 {[%emt 0:01:01][%mdl 128] White is out for blood.} ({Weaker is} 31. c5 Ne5 32. Bb4 Qb5 $16) 31... Re8 {[%emt 0:01:46]} (31... Nxd6 {is tougher.} 32. Rxd6 Qe5 33. Bxg6+ Kg8) 32. Rd5 {[%emt 0:00:47] Intending Bxg6+ and mate.} Qxa2 {[%emt 0:01:47] [#]} 33. Bxg6+ $1 {[%emt 0:01:14][%mdl 512] This bishop pair is nice.} Kh8 {[%emt 0:00:37]} (33... Kg8 34. Bxf7+) 34. Qxh5+ {[%emt 0:01:17] Weighted Error Value: White=0.52/Black=0.74} 1-0

[Event "Fredericia IM 2022"]
[Site "Fredericia"]
[Date "2022.05.27"]
[Round "4.3"]
[White "Boe, FM Mads"]
[Black "Storme, FM Isak"]
[Result "1/2-1/2"]
[ECO "A46"]
[WhiteElo "2293"]
[BlackElo "2388"]
[Annotator "TA"]
[PlyCount "74"]
[EventDate "2022.05.25"]
[EventType "tourn"]
[EventCountry "DEN"]
[SourceTitle "playchess.com"]
[Source "ChessBase"]
[SourceQuality "1"]
[TimeControl "40/5400+30:1800+30"]

{[%evp 17,74,-8,-2,-4,-6,-5,0,0,0,-12,-4,-7,0,0,0,0,0,0,0,0,0,-7,16,16,10,0,0,0,15,11,6,0,0,0,0,0,0,0,9,0,0,0,0,0,0,0,0,0,0,0,0,0,0,0,0,0,0,0,0]} 1. d4 {[%emt 0:00:03]} Nf6 {[%emt 0:00:18]} 2. Nf3 {[%emt 0:00:05]} d5 {[%emt 0:00:28]} 3. c4 {[%emt 0:00:11]} e6 {[%emt 0:00:11]} 4. cxd5 {[%emt 0:00:08]} exd5 {[%emt 0:00:11]} 5. Nc3 {[%emt 0:00:06]} c6 {[%emt 0:01:11]} 6. Bg5 {[%emt 0:00:08]} Be7 {[%emt 0:00:10]} 7. e3 {[%emt 0:00:06]} Bf5 {[%emt 0:00:19]} 8. Bd3 {[%emt 0:00:06]} Bxd3 {[%emt 0:00:10]} 9. Qxd3 {[%emt 0:00:05]} Nbd7 {[%emt 0:00:26] The position is equal.} 10. h3 {[%emt 0:01:13] D35: Queen's Gambit Declined: Exchange Variation.} O-O {[%emt 0:02:40]} 11. Bf4 {[%emt 0:00:09]} Ne8 {[%emt 0:06:51][%cal Bf6e8,Be8d6,Bd6f5][%mdl 32]} 12. O-O {[%emt 0:01:18]} Bd6 {[%emt 0:01:03] [#]} 13. Ne2 $146 {[%emt 0:06:07]} ({Predecessor:} 13. Bxd6 Nxd6 14. Rfe1 Re8 15. Ne2 f5 16. Ng3 g6 17. Rac1 a6 18. Qb3 Kg7 19. Qb4 Qf6 20. h4 Rab8 21. h5 Ne4 22. hxg6 hxg6 23. Nxe4 {½-½ (25) Shi,Y (1327)-Guo,F (1601) Montreal 2010}) 13... h6 {[%emt 0:05:11]} 14. Qc2 {[%emt 0:07:16]} Qe7 {[%emt 0:03:08]} 15. Rfe1 {[%emt 0:05:03]} Bxf4 {[%emt 0:06:48]} 16. Nxf4 {[%emt 0:00:21]} Nd6 {[%emt 0:01:09]} 17. Nd3 {[%emt 0:00:39]} Rfe8 {[%emt 0:07:18]} 18. Rac1 {[%emt 0:19:09]} Qe6 {[%emt 0:13:20]} 19. Nf4 {[%emt 0:05:14]} Qf5 {[%emt 0:09:51]} 20. Qxf5 {[%emt 0:01:04]} Nxf5 {[%emt 0:00:15]} 21. Nd3 {[%emt 0:00:10]} Nd6 {[%emt 0:00:58]} 22. Nfe5 {[%emt 0:03:38]} Rad8 {[%emt 0:07:15]} 23. Nxd7 {[%emt 0:02:44]} Rxd7 {[%emt 0:00:08]} 24. Rc2 {[%emt 0:01:10]} h5 {[%emt 0:02:40]} 25. h4 {[%emt 0:08:17]} f6 {[%emt 0:01:00]} 26. g3 {[%emt 0:05:18]} Kf7 {[%emt 0:00:40]} 27. Kg2 {[%emt 0:00:06]} g6 {[%emt 0:02:25]} 28. Rcc1 {[%emt 0:05:11]} a5 {[%emt 0:01:10]} 29. a4 {[%emt 0:00:32]} Rde7 {[%emt 0:00:33]} 30. b3 {[%emt 0:02:13]} Ra8 {[%emt 0:01:24]} 31. Red1 {[%emt 0:08:28]} Ra6 {[%emt 0:05:22]} 32. Rb1 {[%emt 0:02:21]} Rb6 {[%emt 0:00:55]} 33. Rdc1 {[%emt 0:00:29]} Re8 {[%emt 0:01:00]} 34. Rb2 {[%emt 0:00:22]} Ra8 {[%emt 0:01:11]} 35. Rd1 {[%emt 0:05:19]} Re8 {[%emt 0:00:29]} 36. Rc1 {[%emt 0:00:07]} Ra8 {[%emt 0:00:06]} 37. Rd1 {[%emt 0:00:06]} Re8 {[%emt 0:00:12] An interesting draw.  Weighted Error Value: White=0.02 (flawless) /Black=0.02 (flawless)} 1/2-1/2

[Event "Fredericia IM 2022"]
[Site "Fredericia"]
[Date "2022.05.27"]
[Round "4.4"]
[White "Vinter-Schou, IM Uffe"]
[Black "Thorsbro, Peter"]
[Result "1-0"]
[ECO "C48"]
[WhiteElo "2321"]
[BlackElo "2192"]
[Annotator "TA"]
[PlyCount "85"]
[EventDate "2022.05.25"]
[EventType "tourn"]
[EventCountry "DEN"]
[SourceTitle "playchess.com"]
[Source "ChessBase"]
[SourceQuality "1"]
[TimeControl "40/5400+30:1800+30"]

{[%evp 16,85,42,30,41,20,31,30,26,15,18,25,18,30,39,7,2,0,23,0,0,0,17,11,10,1,4,7,0,2,71,58,71,52,129,135,241,198,138,137,147,124,133,116,180,120,136,133,283,273,355,20,319,344,329,343,341,313,295,302,320,311,516,493,679,579,1007,965,1105,1072,966,860]} 1. e4 {[%emt 0:00:02]} e5 {[%emt 0:01:34]} 2. Nf3 {[%emt 0:00:08]} Nc6 {[%emt 0:00:06]} 3. Nc3 {[%emt 0:00:09]} Nf6 {[%emt 0:00:06]} 4. Bb5 {[%emt 0:00:06]} a6 {[%emt 0:00:07]} 5. Bxc6 {[%emt 0:01:37]} dxc6 {[%emt 0:00:08]} 6. O-O {[%emt 0:03:40]} Bg4 {[%emt 0:09:10]} 7. h3 {[%emt 0:00:23]} Bxf3 {[%emt 0:00:41]} 8. Qxf3 {[%emt 0:00:08]} Qd7 {[%emt 0:03:16]} 9. d3 {[%emt 0:05:05]} Bc5 {[%emt 0:03:22] [#] C68: Ruy Lopez: Exchange Variation, sidelines.} 10. Bh6 $146 {[%emt 0:17:40]} ({Predecessor:} 10. Bg5 Rg8 11. Kh1 Qe6 12. Ne2 O-O-O 13. Ng3 h6 14. Bxf6 gxf6 15. Qf5 Rg5 16. Qxe6+ fxe6 17. Rad1 {1-0 (87) Da Silva,D-Leao,A Itajai 2016}) 10... O-O {[%emt 0:12:57]} 11. Qg3 {[%emt 0:00:21][%csl Gh6,LRe5,LRg7][%cal Rg3g7]} Ne8 {[%emt 0:00:09] White has an edge.} 12. Kh1 {[%emt 0:01:31]} ({Not} 12. Qxe5 Bd6 13. Qh5 (13. Qg5 $2 f6 $17) 13... gxh6 14. Qxh6 Qe6 15. Qxe6 fxe6 $17) 12... Qe6 {[%emt 0:01:57]} 13. Bd2 {[%emt 0:00:15]} f6 {[%emt 0:09:08]} 14. Ne2 {[%emt 0:05:08]} Bd6 {[%emt 0:02:04]} 15. Qe3 {[%emt 0:09:22]} c5 {[%emt 0:07:25][%cal Bc6c5,Bc5c4][%mdl 32]} 16. a4 {[%emt 0:01:59][%cal Ba2a4,Ba4a5][%mdl 32]} b6 {[%emt 0:02:11]} 17. a5 {[%emt 0:02:10]} b5 {[%emt 0:08:53]} 18. f4 {[%emt 0:03:19]} c4 {[%emt 0:04:55]} 19. d4 {[%emt 0:02:25]} exf4 {[%emt 0:01:04]} 20. Nxf4 {[%emt 0:00:08]} Bxf4 {[%emt 0:00:11]} 21. Rxf4 {[%emt 0:01:50]} Nd6 {[%emt 0:01:09] Threatens to win with ...g5.} 22. Re1 {[%emt 0:06:52]} Rfe8 {[%emt 0:04:03]} (22... Rae8 $11 {keeps the balance.}) 23. Qf3 {[%emt 0:02:15]} Nf7 {[%emt 0:02:54]} 24. Bc3 {[%emt 0:00:12]} Rad8 {[%emt 0:00:46]} (24... Qe7 $14) 25. Qg3 $1 $16 {[%emt 0:01:56] Black must now prevent d5.} Rd7 {[%emt 0:00:58] [#]} (25... Kh8 $16) 26. d5 $1 $18 {[%emt 0:01:27]} Qd6 {[%emt 0:04:57]} 27. Bxf6 {[%emt 0:00:07][%csl Gf6][%cal Rg3g7] White is more active.} Ne5 {[%emt 0:04:54]} 28. Bxe5 {[%emt 0:06:09]} Qxe5 {[%emt 0:01:36]} 29. Ref1 $40 {[%emt 0:00:12][%cal Of4f8][%mdl 128] And now Rf8+! would win. Black is in trouble.} Rf7 {[%emt 0:02:48] Prevents Rf8+.} 30. Kh2 {[%emt 0:02:19]} (30. Qf2 $18 Rxf4 31. Qxf4) 30... Rxf4 {[%emt 0:05:44]} 31. Qxf4 {[%emt 0:00:07]} Qxf4+ {[%emt 0:00:05]} (31... Qxe4 $2 {gets mated.} 32. Qf7+ Kh8 {[#]} 33. Qf8+ $3 {[%mdl 512]} Rxf8 34. Rxf8#) (31... Qe7 $16 {might work better.} 32. Qf5 h6) 32. Rxf4 $16 {[%emt 0:00:02][%mdl 4096] Endgame KR-KR} g5 {[%emt 0:02:20]} 33. Rg4 {[%emt 0:00:08]} (33. Rf6 $18) 33... Re5 $2 {[%emt 0:00:05][%mdl 8192]} (33... Kf7 $11 {and Black stays safe.}) 34. h4 $18 {[%emt 0:00:10]} h6 {[%emt 0:01:17]} 35. hxg5 {[%emt 0:00:24]} hxg5 {[%emt 0:00:03]} 36. Kg3 {[%emt 0:00:11]} Kf7 {[%emt 0:03:15]} 37. Kf3 {[%emt 0:00:20]} Kf6 {[%emt 0:00:23]} 38. Rg3 {[%emt 0:00:18] Strongly threatening Ke3.} Re7 $2 {[%emt 0:02:12]} (38... c6 {was worth a try.} 39. dxc6 Rc5) 39. Ke3 {[%emt 0:00:06] White is clearly winning.} Rh7 {[%emt 0:00:14]} 40. Rf3+ {[%emt 0:00:30]} Kg6 {[%emt 0:00:33]} 41. e5 {[%emt 0:30:37]} Rh1 {[%emt 0:30:40]} 42. Rf6+ {[%emt 0:05:46]} Kg7 {[%emt 0:00:00]} 43. Rxa6 {[%emt 0:00:00] Weighted Error Value: White=0.28 (precise) /Black=0.57} 1-0

[Event "Fredericia IM 2022"]
[Site "Fredericia"]
[Date "2022.05.27"]
[Round "4.5"]
[White "Fries Nielsen, IM Jens Ove"]
[Black "Hilwerda, FM Jonas"]
[Result "1/2-1/2"]
[ECO "B34"]
[WhiteElo "2370"]
[BlackElo "2275"]
[Annotator "TA"]
[PlyCount "63"]
[EventDate "2022.05.25"]
[EventType "tourn"]
[EventCountry "DEN"]
[SourceTitle "playchess.com"]
[Source "ChessBase"]
[SourceQuality "1"]
[TimeControl "40/5400+30:1800+30"]

{[%evp 17,63,-30,-31,-37,-20,-43,0,-16,-18,-38,-6,-20,-15,0,-8,-47,-39,-48,-48,-46,-45,-86,-71,-75,-68,-64,-61,-63,0,-35,-31,-21,-22,-62,-62,-118,-117,-100,-76,-81,-91,-129,-89,-82,-85,-84,-91,-80]} 1. e4 {[%emt 0:00:30]} c5 {[%emt 0:05:13]} 2. Nf3 {[%emt 0:00:34]} Nc6 {[%emt 0:00:09]} 3. d4 {[%emt 0:01:12]} cxd4 {[%emt 0:00:14]} 4. Nxd4 {[%emt 0:00:04]} Nf6 {[%emt 0:00:36]} 5. Nc3 {[%emt 0:00:48]} e5 {[%emt 0:01:04]} 6. Nde2 {[%emt 0:01:14]} Bc5 {[%emt 0:00:55]} 7. Be3 {[%emt 0:00:51]} Bxe3 {[%emt 0:06:31]} 8. fxe3 {[%emt 0:00:03]} O-O {[%emt 0:00:11]} 9. Qd2 {[%emt 0:00:45]} d6 {[%emt 0:08:04]} 10. Ng3 {[%emt 0:00:45] B33: Sicilian: Pelikan and Sveshnikov Variations.} Be6 {[%emt 0:06:12] [#]} 11. Bd3 $146 {[%emt 0:01:49]} ({Predecessor:} 11. Rd1 Qb6 12. Be2 Rfd8 13. Nd5 Bxd5 14. exd5 Nb4 15. c4 Nxa2 16. O-O Nd7 17. Kh1 e4 18. Nxe4 {1-0 (27) Cubas,J (2463)-Alvarez Marquez,J (2414) Khanty-Mansiysk 2010}) 11... Nb4 {[%emt 0:08:24]} 12. O-O {[%emt 0:01:28] The position is equal.} Nxd3 {[%emt 0:02:45]} 13. Qxd3 {[%emt 0:02:13]} d5 {[%emt 0:01:35]} (13... Rc8 $5 {[%cal Re6c4]} 14. Nd5 Bxd5 15. exd5 Nd7 $11) 14. exd5 {[%emt 0:05:23]} Nxd5 {[%emt 0:00:14]} 15. Rad1 {[%emt 0:01:20][%cal Rc3d5]} Nf6 {[%emt 0:21:41]} 16. Nce4 {[%emt 0:18:23]} Nxe4 {[%emt 0:04:44]} 17. Qxe4 {[%emt 0:00:44]} Qc7 {[%emt 0:01:53]} 18. Rf2 {[%emt 0:04:19]} Rad8 {[%emt 0:06:45]} (18... Bxa2 $2 19. b3 $18) 19. Rdf1 {[%emt 0:06:01]} f6 {[%emt 0:06:03]} (19... Bxa2 $2 20. b3 $18) 20. b3 {[%emt 0:01:25]} Rd7 {[%emt 0:02:29]} 21. c4 {[%emt 0:01:41]} Rfd8 {[%emt 0:03:23]} 22. Qf3 {[%emt 0:04:48]} Rd2 {[%emt 0:04:08]} (22... Qb6 $15) 23. Ne4 {[%emt 0:01:42]} Rxf2 {[%emt 0:00:04]} (23... R2d3 {looks sharper.} 24. Ng5 Bf7 25. Nxf7 Kxf7 26. g4 h6) 24. Qxf2 {[%emt 0:00:13]} Bf7 {[%emt 0:03:21][%cal Be6f7,Bf7g6,Bg6h5,Bh5e2][%mdl 32]} 25. Nc3 {[%emt 0:01:40]} Rd3 {[%emt 0:00:50]} 26. Qc2 {[%emt 0:15:47] [#]} (26. Na4 $15) 26... Bg6 $1 $17 {[%emt 0:01:36] Black is better.} ({But not} 26... Rxe3 $6 27. Qd2 Qc5 28. Qd8+ Qf8 29. Qd2 $11) 27. Qc1 {[%emt 0:00:27]} Qa5 {[%emt 0:01:25]} 28. Na4 {[%emt 0:01:47]} Bh5 {[%emt 0:01:41]} 29. c5 {[%emt 0:04:03] Threatens to win with Qc4+.} Be2 {[%emt 0:00:05]} 30. Re1 {[%emt 0:00:33] [#]} Qd2 $1 {[%emt 0:01:27]} (30... Rxe3 $2 31. Rxe2 Rxe2 32. Qc4+ Kf8 33. Qxe2 $18) 31. Qxd2 {[%emt 0:02:14]} Rxd2 {[%emt 0:00:01]} 32. Nc3 {[%emt 0:00:12] Weighted Error Value: White=0.15 (very precise) /Black=0.10 (very precise)} 1/2-1/2